Cogmind - Beta 13 @@@ ROGUE MODE // 2024.04.17 @ 04:38:42 Player: Zaros426 Result: Destroyed by as-88853 with Assembled Blade Performance ------------- Evolutions (0) 0 Regions Visited (2) 400 Robots Destroyed (17) 85 Value Destroyed (186) 186 Prototype IDs (2) 40 Alien Tech Used (0) 0 Bonus (0) 0 TOTAL SCORE: 711 Bonus ------- None Cogmind --------- Core Integrity 0/250 Matter 300/300 Energy 100/100 System Corruption 5% Temperature Cool (0) Movement Core (400) Ox7 Location -10/Mines Parts ------- > --- POWER (1) -------- (None) > --- PROPULSION (2) --- (None) > --- UTILITY (2) ------ Large Storage Unit > --- WEAPON (2) ------- Hammer Hammer > --- INVENTORY (15) --- Small Storage Unit Improved Terrain Scanner Seismic Detector Medium Laser Assault Rifle Hammer Hammer Peak State ------------ > --- POWER ------------ Ion Engine > --- PROPULSION ------- Compact Wheel Compact Wheel > --- UTILITY ---------- Large Storage Unit Seismic Detector > --- WEAPON ----------- Medium Laser Hammer > --- INVENTORY -------- Small Storage Unit Improved Terrain Scanner [Rating: 7] Favorites ----------- Power Ion Engine Engine Ion Engine Propulsion Compact Wheel Wheel Compact Wheel Utility Large Storage Unit Device Seismic Detector Storage Large Storage Unit Processor Signal Interpreter Weapon Hammer Energy Gun Medium Laser Ballistic Gun Assault Rifle Impact Weapon Hammer Build | -11 -10 -10 ------- Run | Yrd Mat Min Slots Evolved . | . . . Power . | . . . Propulsion . | . . . Utility . | . . . Weapon . | . . . Parts Attached 11 | 6 4 1 Power 1 | 1 . . Engine 1 | 1 . . Core . | . . . Reactor . | . . . Propulsion 2 | 2 . . Treads . | . . . Leg . | . . . Wheel 2 | 2 . . Hover . | . . . Flight . | . . . Utility 4 | 2 2 . Device 1 | 1 . . Storage 2 | 1 1 . Processor 1 | . 1 . Hackware . | . . . Protection . | . . . Artifact . | . . . Weapon 4 | 1 2 1 Energy Gun 1 | 1 . . Energy Cannon . | . . . Ballistic Gun 1 | . 1 . Ballistic Cannon . | . . . Launcher . | . . . Special Weapon . | . . . Impact Weapon 2 | . 1 1 Slashing Weapon . | . . . Piercing Weapon . | . . . Special Melee Weapon . | . . . Unidentified Prototypes . | . . . Parts Lost 4 | . . 4 Power 1 | . . 1 Propulsion 2 | . . 2 Utility 1 | . . 1 Weapon . | . . . Highest Loss Streak 3 | . . 3 To Critical Strikes . | . . . Average Slot Usage (%) 92 | . 98 74 Engine 12 | . 14 8 Wheel 25 | . 28 19 Device 10 | . 14 . Storage 14 | . 14 14 Processor 1 | . . 3 Energy Gun 4 | . 6 . Ballistic Gun 5 | . 7 1 Impact Weapon 16 | . 13 26 Naked Turns . | . . . Heaviest Build 30 | 13 30 29 Greatest Support 32 | 32 32 32 Greatest Overweight (x) 7 | 3 . 7 Average Overweight (x) . | . . . Largest Inventory Capacity 15 | 8 15 15 Average Capacity 12 | 7 14 15 Most Carried 7 | 1 7 7 Average Carried 4 | . 5 7 Final Capacity 15 | 8 15 15 Final Carried 7 | 1 7 7 Class Distribution -------------------- 100% | Mutant Dominant Class ---------------- Mutant | -10/Materials Mutant | -10/Mines Resources | -11 -10 -10 ----------- Run | Yrd Mat Min Matter Collected 345 | 260 54 31 Remotely . | . . . Salvage Created 657 | 218 272 167 Parts 38 | 21 17 . Haulers Intercepted . | . . . Recyclers Shooed 4 | 2 2 . Parts Field Recycled . | . . . Retrieved Matter . | . . . Parts Self-Destructed . | . . . Prevented . | . . . Kills | -11 -10 -10 ------- Run | Yrd Mat Min Combat Hostiles Destroyed 18 | . 5 13 Melee 10 | . 1 9 Guns 3 | . 3 . Classes Destroyed 7 | 3 3 1 Worker 2 | 2 . . Tunneler 6 | 6 . . Recycler 2 | 1 1 . Watcher 2 | . 2 . Swarmer 3 | . 3 . Grunt 2 | . 2 . Assembled 13 | . . 13 Best Kill Streak 13 | 5 5 13 Combat Bots Only 13 | . 5 13 Max Kills in Single Turn 1 | 1 1 1 Gunslinging . | . . . Exploded . | . . . Melee 1 | . 1 1 Uniques/NPCs Destroyed . | . . . Combat | -11 -10 -10 -------- Run | Yrd Mat Min Hostile Shots Fired 55 | . 14 41 Missed 16 | . 5 11 Damage Taken 666 | . 81 585 Core 276 | . 27 249 Absorbed by Shields . | . . . Core Remaining (%) 100 | 100 . . Volleys Fired 43 | 26 15 2 Largest 1 | 1 1 1 Hottest 50 | 50 50 20 Shots Fired 43 | 26 15 2 Gun 43 | 26 15 2 Cannon . | . . . Launcher . | . . . Special . | . . . Kinetic 10 | . 8 2 Thermal 33 | 26 7 . Explosive . | . . . Electromagnetic . | . . . Robot Hit Streak 6 | 5 6 5 Robot Miss Streak 3 | 2 3 . Penetration Max . | . . . Secondary Targets . | . . . Shots Hit Robots 53 | 19 15 19 Core Hits 29 | 10 10 9 Critical Kills 4 | . . 4 Critical Parts Destroyed 3 | . 1 2 Critical Strikes 8 | 1 1 6 Burn 1 | 1 . . Smash 7 | . 1 6 Melee Attacks 45 | . 8 37 Impact 45 | . 8 37 Slashing . | . . . Piercing . | . . . Sneak Attacks 1 | . 1 . Combat Hostiles . | . . . Follow-up Attacks 4 | . . 4 Damage Inflicted 1013 | 235 260 518 Guns 377 | 235 120 22 Cannons . | . . . Explosions . | . . . Melee 636 | . 140 496 Ramming . | . . . Kinetic 91 | . 69 22 Thermal 286 | 235 51 . Explosive . | . . . Electromagnetic . | . . . Impact 636 | . 140 496 Slashing . | . . . Piercing . | . . . Highest Corruption 5 | . . 5 Average Corruption 3 | . . 3 Corruption Purged . | . . . Corruption Blocked . | . . . Effects 2 | . . 2 Matter Fused 1 | . . 1 Energy Discharges 1 | . . 1 Overload Shots . | . . . Overflow Damage 110 | . 18 92 Projectiles . | . . . Explosions . | . . . Melee 110 | . 18 92 Knockbacks 2 | . 2 . Impact 2 | . 2 . Kinetic . | . . . Secondary . | . . . Self-Inflicted Damage . | . . . Shots . | . . . Rammed . | . . . Targets Rammed . | . . . Kicked . | . . . Crushed . | . . . Highest Temperature 70 | 60 70 37 Average Temperature 22 | 20 36 11 Received Heat Transfer 312 | . 12 300 Siege Activations . | . . . Robots Corrupted . | . . . Combat Hostiles . | . . . Parts Fried 1 | . 1 . Impact Corruptions 7 | . 1 6 Robots Melted . | . . . Combat Hostiles . | . . . Parts Melted 3 | 2 1 . Heat Transferred 925 | 777 148 . Parts Sabotaged . | . . . Parts Stolen . | . . . Parts Stripped . | . . . Power Chain Reactions . | . . . Alert | -11 -10 -10 ------- Run | Yrd Mat Min Peak Influence 209 | 45 209 81 Initial 81 | . 29 81 Average 81 | 19 132 63 Maximum Alert Level 1 | . 1 . Low Security (%) 92 | 100 85 100 Level 1 7 | . 14 . Level 2 . | . . . Level 3 . | . . . Level 4 . | . . . Level 5 . | . . . High Security . | . . . Max Security . | . . . Squads Dispatched 1 | . 1 . Investigation . | . . . Extermination . | . . . Reinforcement 1 | . 1 . Assault . | . . . Garrison . | . . . Intercept . | . . . Searches Triggered . | . . . Construction Impeded . | . . . Haulers Reinforced . | . . . Active Scanning Responses . | . . . Cargo Convoy Interrupts . | . . . Stealth | -11 -10 -10 --------- Run | Yrd Mat Min Distress Signals . | . . . Communications Jammed . | . . . Distress Signals . | . . . Times Spotted 27 | . 8 19 Peak Tracking Total 18 | . 5 18 Tactical Retreats 1 | . . 1 Traps | -11 -10 -10 ------- Run | Yrd Mat Min Traps Triggered . | . . . Indirectly . | . . . Trap Hack Attempts . | . . . Triggered . | . . . Disarmed . | . . . Reprogrammed . | . . . Reused . | . . . Traps Extracted . | . . . Installed . | . . . Triggered . | . . . Machines | -11 -10 -10 ---------- Run | Yrd Mat Min Machines Disabled . | . . . Max in Single Turn . | . . . Machines Repaired . | . . . Machines Dismantled . | . . . Machines Sabotaged . | . . . Overloaded Fab Kills . | . . . Hacking | -11 -10 -10 --------- Run | Yrd Mat Min Machines Accessed 4 | . 4 . Terminals 4 | . 4 . Fabricators . | . . . Repair Stations . | . . . Recycling Units . | . . . Scanalyzers . | . . . Garrison Access . | . . . Total Hacks 9 | . 9 . Successful 4 | . 4 . Failed 5 | . 5 . Catastrophic . | . . . Database Lockouts . | . . . Manual . | . . . Terminals 9 | . 9 . Fabricators . | . . . Repair Stations . | . . . Recycling Units . | . . . Scanalyzers . | . . . Garrison Access . | . . . Terminal Hacks 4 | . 4 . Prototype ID Bank 1 | . 1 . Locate Traps 2 | . 2 . Zone Layout 1 | . 1 . Fabricator Hacks . | . . . Repair Station Hacks . | . . . Recycling Unit Hacks . | . . . Scanalyzer . | . . . Garrison Access Hacks . | . . . Unauthorized Hacks . | . . . Terminals . | . . . Fabricators . | . . . Repair Stations . | . . . Recycling Units . | . . . Scanalyzers . | . . . Garrison Access . | . . . Data Cores Recovered . | . . . Used . | . . . Hacking Detections 3 | . 3 . Full Trace Events . | . . . Feedback Events . | . . . Feedback Blocked . | . . . Robot Schematics Acquired . | . . . Robots Built . | . . . Authchips . | . . . Time . | . . . Total Robot Build Rating . | . . . Part Schematics Acquired . | . . . Parts Built . | . . . Authchips . | . . . Time . | . . . Total Part Build Rating . | . . . Parts Repaired . | . . . Time . | . . . Parts Recycled . | . . . Recycled Matter . | . . . Retrieved Matter . | . . . Retrieved Components . | . . . Parts Scanalyzed . | . . . Part Schematics Acquired . | . . . Parts Damaged . | . . . Bothacking | -11 -10 -10 ------------ Run | Yrd Mat Min Used RIF Installer . | . . . Robots Hacked . | . . . Non-combat . | . . . Combat . | . . . Robot Hacks Applied . | . . . Relay Couplers Released . | . . . Fabnet Peak Effective % . | . . . Robots Rewired . | . . . Allies Hacked . | . . . Hacks Repelled . | . . . Allies | -11 -10 -10 -------- Run | Yrd Mat Min Total Allies . | . . . Largest Group . | . . . Highest-Rated Group . | . . . Highest-Rated Ally . | . . . Total Orders . | . . . Ally Attacks . | . . . Total Damage . | . . . Kills . | . . . Allies Corrupted . | . . . Allies Melted . | . . . Intel | -11 -10 -10 ------- Run | Yrd Mat Min Robot Analysis Total . | . . . Derelict Logs Recovered . | . . . Drone Launches . | . . . Drone Recoveries . | . . . Exploration | -11 -10 -10 ------------- Run | Yrd Mat Min Turns Passed 612 | 211 294 107 Spaces Moved 377 | 142 226 9 Core 22 | 21 . 1 Treads . | . . . Legs . | . . . Wheels 355 | 121 226 8 Hover . | . . . Flight . | . . . Fastest Speed 50 | 50 100 100 Average Speed 101 | 103 100 133 Slowest Speed 400 | 200 100 400 Overloaded Moves . | . . . Propulsion Burnouts . | . . . Robots Hopped . | . . . Cave-ins Triggered . | . . . Exploration Rate (%) 18 | 5 47 4 Regions Visited 2 Branch Regions 1 Pre-discovered Areas . | . . . Known Exits Taken 1 | . 1 . Unknown Exits Taken 1 | 1 . . Scrap Searched . | . . . Spaces Dug 1 | . 1 . Terrain Destroyed 1 | . 1 . Melee 1 | . 1 . Projectile . | . . . AOE . | . . . Terrain Rammed . | . . . Walls Destroyed . | . . . Machines Disabled . | . . . Actions | -11 -10 -10 --------- Run | Yrd Mat Min Total 486 | 178 263 45 Wait 10 | 3 6 1 Move 375 | 141 225 9 Hop . | . . . Pick Up 7 | 2 5 . Fast Attach 6 | 5 1 . Attach 1 | 1 . . Detach . | . . . Swap 4 | . 3 1 Drop . | . . . Fire 43 | 26 15 2 Melee 40 | . 8 32 Ram . | . . . Kick . | . . . Crush . | . . . Escape Stasis . | . . . Rewire . | . . . Trap . | . . . Miscellaneous . | . . . Route ------- -11/Scrapyard -10/Materials (discovered 2 exits: [*Mat] / *Min) -10/Mines History --------- Turn | Location | Event 8 | -11/Scrapyard | Discovered new exit (range 16) 212 | -11/Scrapyard | Entered Materials 313 | -10/Materials | Build established: Mutant 373 | -10/Materials | Discovered new exit (range 5) 476 | -10/Materials | Discovered new exit (range 15) 506 | -10/Materials | Identified exit to Mines 506 | -10/Materials | Entered Mines 507 | -10/Mines | Assembled infested the area 568 | -10/Mines | Core integrity fell below 50% 607 | -10/Mines | Core integrity fell below 20% 613 | -10/Mines | Lost 3 parts (1p2n) 613 | -10/Mines | Destroyed by as-88853 with Assembled Blade Last Messages --------------- 00577_ Com. Wheel destroyed. 00577_ as-03476 suffers critical hit (Smash). 00577_ Destroyed Asb. Heavy Rifle. 00577_ as-03476 system corrupted by crushing effect. 00580_ Destroyed Asb. F-torch. 00580_ as-20862 system corrupted by crushing effect. 00582_ Com. Wheel destroyed. 00582_ System corrupted by crushing effect (+3). 00582_ Knocked back. 00590_ Hammer follow-up attack on as-72356. 00590_ as-72356 destroyed. 00594_ Critical hit (Burn: +80). 00596_ System corrupted: Energy discharge (-40). 00600_ Critical hit (Burn: +80). 00604_ Destroyed Asb. F-torch. 00604_ as-53125 system corrupted by crushing effect. 00605_ as-53125 system terminally corrupted. 00607_ as-97805 suffers critical hit (Smash). 00607_ as-97805 destroyed. 00609_ as-20250 destroyed. Map ----- +----------------------------------------------------+ | ?????????????????????????????????? | | ?????????????????????????????????? | | ?????????????????????????????????? | | ?????????????????????????????????? | | ?????????????????????????????????? | | ?????????????????????????????????? | | ?????????????????????????????????? | | ?????????????????????????????????? | | ?????????????????????????????????? | | ?????????????????????????????????? | | ?????????????????????????????????? | | ?????????????????????????????????? | | ?????????????????????????????????? | | ?????????????????????????????????? | | ?????????????????????????????????? | | ?????????????????????????????????? | | ?????????????????????????????????? | | ?????????????????????????????????? | | ??????????????????????########???? | | ??????????????????????# #???? | | ??????????????????????# #???? | | ??????????????????????# #???? | | ??????????????????????# #???? | | ??????????????????????# #???? | | ??????????????????????# % #???? | | ??????????????????????###@####???? | | ????????????????????????#a#??????? | | ????????????????????????#a#??????? | | ????????????????????????#a#??????? | | ????????????????????????#a#??????? | | ????????????????????????# #??????? | | ????????????????????????#% ??????? | | ???????????????????????? ??????? | | ???????????????????????? ??????? | | ????????????????????????# ??????? | | ????????????????????????#%!??????? | | ????????????????????????? ??????? | | ?????????????????????????# ?????? | | ?????????????????????????? ?????? | | ?????????????????????????? ?????? | | ?????????????????????????? ?????? | | ?????????????????????????? ?????? | | ??????????????????????????# ?????? | | ?????????????????????????????????? | | ?????????????????????????????????? | | ?????????????????????????????????? | | ?????????????????????????????????? | | ?????????????????????????????????? | | ?????????????????????????????????? | | ?????????????????????????????????? | +----------------------------------------------------+ Best States ------------- Heat Dissipation 25 Energy Generation 10 Energy Capacity 250 Matter Stores 300 Matter Capacity 300 Sight Range 16 Terrain Scan Density 10 Evasion (%) 40 Item Schematics ----------------- None Robot Schematics ------------------ None Fabricated ------------ Nothing Alien Tech Used ----------------- None Achievements -------------- None Challenges ------------ None Game ------ Seed LightningPlatingKit Manual? 0 Play Time 00:09:20 Cumulative 51.2 hours Start 2024.04.17 @ 04:30:50 End 2024.04.17 @ 04:38:42 Sessions 1 Manual Loads 0 Difficulty Rogue Special Mode None Game No. 53 Rogue 53 Adventurer 0 Explorer 0 Win Type - Total 0 Types 0/0/0/0/0/0/0/0/0 Lore% 29 Gallery% 44 Achievement% 31 Wizard Run 0 Options --------- Layout 0 ASCII 0 Keyboard 0 Movement Mouse Keybinds 0 Fullscreen 2 Font 24/Smallcaps Map View 183x50 Zoom Use 0% Tactical HUD 1 Map Filters NONE Filters NONE Steam 0 RUN: fb4a72d7-0c21-4a66-8088-66713c255f8e